fUST/lending_fUST_20240204
["ID","MTS","AMOUNT","RATE_DAILY","PERIOD"]
[313256189,1707036647242,-500.0,0.0002582,2]
[313256190,1707036647252,-908.36,0.0002582,2]
[313256191,1707036647261,-500.0,0.0002582,2]
[313256192,1707036647270,-500.0,0.0002582,2]
[313256193,1707036647279,-500.0,0.0002582,2]
[313256194,1707036647288,-500.0,0.0002582,2]
[313256195,1707036647298,-151.0,0.00025821,2]
[313256196,1707036647307,-151.0,0.00025821,2]
[313256197,1707036647316,-939.19131271,0.00025888,2]
[313256198,1707036647325,-500.0,0.00025899,2]
[313256199,1707036647334,-500.0,0.00025899,2]
[313256200,1707036647344,-500.0,0.00025899,2]
[313256201,1707036647356,-206.40595228,0.00025899,2]
[313256202,1707036647366,-346.59273457,0.00025899,2]
[313256203,1707036647375,-500.0,0.00025899,2]
[313256204,1707036647385,-596.4668107,0.00025899,2]
[313256205,1707036647394,-500.0,0.00025899,2]
[313256206,1707036647404,-398.04397372,0.00025899,2]
[313256207,1707036647413,-500.0,0.00025899,2]
[313256208,1707036647422,-500.0,0.00025899,2]
[313256209,1707036647433,-500.0,0.00025899,2]
[313256210,1707036647443,-500.0,0.00025899,2]
[313256211,1707036647452,-500.0,0.00025899,2]
[313256212,1707036647461,-500.0,0.00025899,2]
[313256213,1707036647473,-584.73516172,0.00025899,2]
[313256214,1707036647484,-500.0,0.00025899,2]
[313256215,1707036647493,-500.0,0.00025899,2]
[313256216,1707036647503,-500.0,0.00025899,2]
[313256217,1707036647512,-500.0,0.00025899,2]
[313256218,1707036647523,-500.0,0.00025899,2]
[313256219,1707036647533,-500.0,0.00025899,2]
[313256220,1707036647545,-500.0,0.00025899,2]
[313256221,1707036647555,-500.0,0.00025899,2]
[313256222,1707036647564,-500.0,0.00025899,2]
[313256223,1707036647574,-500.0,0.00025899,2]
[313256224,1707036647583,-500.0,0.00025899,2]
[313256225,1707036647592,-564.68688109,0.00025899,2]
[313256226,1707036647601,-500.0,0.00025899,2]
[313256227,1707036647610,-500.0,0.00025899,2]
[313256228,1707036647619,-500.0,0.00025899,2]
[313256229,1707036647628,-500.0,0.00025899,2]
[313256230,1707036647637,-500.0,0.00025899,2]
[313256231,1707036647647,-500.0,0.00025899,2]
[313256232,1707036647656,-500.0,0.00025899,2]
[313256233,1707036647665,-500.0,0.00025899,2]
[313256234,1707036647674,-500.0,0.00025899,2]
[313256235,1707036647683,-500.0,0.00025899,2]
[313256236,1707036647693,-500.0,0.00025899,2]
[313256237,1707036647702,-500.0,0.00025899,2]
[313256238,1707036647711,-151.0,0.00025899,2]
[313256239,1707036647720,-151.0,0.00025899,2]
[313256240,1707036647729,-151.0,0.00025899,2]
[313256241,1707036647739,-151.0,0.00025899,2]
[313256242,1707036647748,-500.0,0.00025899,2]
[313256243,1707036647757,-500.0,0.00025899,2]
[313256244,1707036647767,-500.0,0.00025899,2]
[313256245,1707036647776,-500.0,0.00025899,2]
[313256246,1707036647785,-346.34020057,0.00025899,2]
[313256247,1707036647794,-68374.24866025,0.000259,2]
[313256248,1707036647807,-709.46106144,0.000259,2]
[313256368,1707037838646,-155.01395126,0.00023074,2]
[313256370,1707037838655,-352.1195832,0.00023074,2]
[313256372,1707037838664,-630.77966473,0.00023075,2]
[313256373,1707037838757,-1092.38594637,0.00023075,2]
[313256374,1707037838770,-742.51013239,0.00023075,2]
[313256375,1707037838780,-412.72220794,0.00023075,2]
[313256413,1707037843601,-921.79253314,0.00023075,2]
[313256420,1707037843658,-4571.54530195,0.00023075,2]
[313256478,1707037844588,-892.17531146,0.00023075,2]
[313256479,1707037844598,-1017.67059015,0.00023076,2]
[313256480,1707037844607,-837.09696628,0.00023111,2]
[313256481,1707037844617,-34.67105296,0.00023111,2]
[313256482,1707037844628,-509.25612575,0.00023111,2]
[313256653,1707039042793,-155.00155002,0.00023103,2]
[313256654,1707039042802,-356.34242508,0.00023104,2]
[313256801,1707040238105,-1017.67059015,0.00022015,2]
[313256802,1707040238115,-315.21392928,0.00022016,2]
[313256871,1707040243015,-8.60164525,0.00022016,2]
[313256872,1707040243025,-155.01085076,0.00022016,2]
[313256873,1707040243035,-233.23973536,0.00022017,2]
[313256908,1707040246027,-118.87984784,0.00022017,2]
[313256910,1707040246036,-155.01085076,0.00022018,2]
[313256911,1707040246045,-2465.67574349,0.00022018,2]
[313256913,1707040246055,-4623.6224718,0.00022477,2]
[313256914,1707040246064,-775.85608884,0.00023009,2]
[313256916,1707040246074,-164.09624383,0.00023011,2]
[313256917,1707040246083,-313.00418309,0.00023104,2]
[313256919,1707040246092,-2528.92911083,0.00023109,2]
[313256921,1707040246102,-18.14262463,0.0002311,7]
[313256923,1707040246120,-242.97977446,0.0002311,7]
[313256925,1707040246129,-993.44858163,0.00023111,2]
[313256932,1707040246435,-1847.90075505,0.00023111,2]
[313256933,1707040246448,-3473.57911172,0.00023111,2]
[313256934,1707040246457,-837.09696629,0.00023111,2]
[313256935,1707040246466,-5000.0,0.00023111,2]
[313256936,1707040246477,-5000.0,0.00023111,2]
[313256937,1707040246486,-1198.6806261,0.00023111,2]
[313256938,1707040246497,-1186.62551862,0.00023111,2]
[313256939,1707040246507,-905.15748367,0.00023111,2]
[313256940,1707040246520,-579.0,0.000241,2]
[313256941,1707040246530,-200.0,0.00024723,7]
[313256942,1707040246540,-152.41551274,0.00024847,2]
[313256943,1707040246549,-156.02810109,0.00024889,2]
[313256944,1707040246559,-501.45649655,0.0002496,5]
[313256945,1707040246569,-500.0,0.00024987,2]
[313256946,1707040246578,-231.01030234,0.00024987,2]
[313256947,1707040246587,-4383.04,0.00024987,2]
[313256948,1707040246596,-500.0,0.00024987,2]
[313256949,1707040246605,-500.0,0.00024988,2]
[313256950,1707040246614,-1658.72,0.00024988,2]
[313256951,1707040246623,-500.0,0.00024988,2]
[313256952,1707040246632,-2161.66,0.00024988,2]
[313256953,1707040246641,-500.0,0.00024989,2]
[313256954,1707040246650,-500.0,0.00024989,2]
[313256955,1707040246660,-500.0,0.00024989,2]
[313256956,1707040246669,-500.0,0.00024989,2]
[313256957,1707040246678,-500.0,0.00024989,2]
[313256958,1707040246687,-500.0,0.00024989,2]
[313256959,1707040246696,-500.0,0.00024989,2]
[313256960,1707040246705,-500.0,0.00024989,2]
[313256961,1707040246714,-500.0,0.00024989,2]
[313256962,1707040246724,-500.0,0.00024989,2]
[313256963,1707040246733,-300.0,0.00024989,2]
[313256964,1707040246743,-500.0,0.00024989,2]
[313256965,1707040246753,-500.0,0.00024989,2]
[313256966,1707040246762,-1747.21,0.00024989,2]
[313256967,1707040246771,-1844.85,0.00024989,2]
[313256968,1707040246781,-500.0,0.00024989,2]
[313256969,1707040246790,-500.0,0.00024989,2]
[313256970,1707040246799,-500.0,0.00024989,2]
[313256971,1707040246808,-500.0,0.00024989,2]
[313256972,1707040246818,-500.0,0.00024997,2]
[313256973,1707040246827,-513.40922285,0.00024997,2]
[313256974,1707040246836,-890.47,0.00024997,2]
[313256975,1707040246846,-500.0,0.00024997,2]
[313256976,1707040246855,-500.0,0.00024997,2]
[313256977,1707040246864,-500.0,0.00024998,2]
[313256978,1707040246874,-500.0,0.00024998,2]
[313256979,1707040246883,-500.0,0.00024998,2]
[313256980,1707040246892,-500.0,0.00024998,2]
[313256981,1707040246902,-500.0,0.00024998,2]
[313256982,1707040246912,-500.0,0.00024998,2]
[313256983,1707040246921,-353.037268,0.00024998,2]
[313256984,1707040246931,-353.037268,0.00024998,2]
[313256985,1707040246940,-500.0,0.00024998,2]
[313256986,1707040246949,-500.0,0.00024998,2]
[313256987,1707040246959,-500.0,0.00024998,2]
[313256988,1707040246969,-1410.29,0.00024998,2]
[313256989,1707040246978,-612.217431,0.00024998,2]
[313256990,1707040246987,-500.0,0.00024998,2]
[313256991,1707040246996,-500.0,0.00024998,2]
[313256992,1707040247006,-514.96,0.00024998,2]
[313256993,1707040247016,-1000.0,0.00024998,2]
[313256994,1707040247026,-500.0,0.00024998,2]
[313256995,1707040247036,-500.0,0.00024998,2]
[313256996,1707040247047,-563.86,0.00024998,2]
[313256997,1707040247058,-151.0,0.00024998,2]
[313256998,1707040247067,-1000.0,0.00024998,2]
[313256999,1707040247078,-500.0,0.00024998,2]
[313257000,1707040247087,-500.0,0.00024998,2]
[313257001,1707040247097,-400.79906347,0.00024998,2]
[313257002,1707040247107,-500.0,0.00024998,2]
[313257003,1707040247117,-155.01395126,0.00025,2]
[313257004,1707040247127,-534.83687431,0.00025,2]
[313257005,1707040247138,-1831.07341754,0.00025,2]
[313257006,1707040247149,-4735.25519825,0.00025,2]
[313257007,1707040247158,-7141.15166325,0.00025,2]
[313257008,1707040247168,-353.037268,0.00025,2]
[313257009,1707040247178,-353.037268,0.00025,2]
[313257010,1707040247188,-353.037268,0.00025,2]
[313257011,1707040247199,-353.037268,0.00025,2]
[313257012,1707040247208,-284.439248,0.00025,2]
[313257013,1707040247217,-156.02810108,0.00025134,2]
[313257014,1707040247226,-500.0,0.00025261,2]
[313257015,1707040247236,-4383.04,0.00025261,2]
[313257016,1707040247248,-500.0,0.00025261,2]
[313257017,1707040247257,-500.0,0.00025262,2]
[313257018,1707040247267,-1658.72,0.00025262,2]
[313257019,1707040247276,-500.0,0.00025262,2]
[313257020,1707040247286,-2161.66,0.00025262,2]
[313257021,1707040247295,-500.0,0.00025263,2]
[313257022,1707040247304,-500.0,0.00025263,2]
[313257023,1707040247313,-500.0,0.00025263,2]
[313257024,1707040247323,-351.9,0.00025263,2]
[313257025,1707040247332,-361.5115118,0.00025263,2]
[313257026,1707040247341,-319.76099632,0.00025263,2]
[313257027,1707040247352,-500.0,0.00025263,2]
[313257028,1707040247361,-1747.21,0.00025263,2]
[313257029,1707040247371,-1844.85,0.00025263,2]
[313257030,1707040247380,-500.0,0.00025263,2]
[313257031,1707040247389,-500.0,0.00025263,2]
[313257032,1707040247397,-500.0,0.00025263,2]
[313257033,1707040247407,-500.0,0.00025271,2]
[313257034,1707040247419,-890.47,0.00025271,2]
[313257035,1707040247430,-500.0,0.00025271,2]
[313257036,1707040247441,-500.0,0.00025271,2]
[313257037,1707040247451,-627.95677877,0.00025272,2]
[313257038,1707040247460,-500.0,0.00025272,2]
[313257039,1707040247471,-500.0,0.00025272,2]
[313257040,1707040247481,-353.037268,0.00025272,2]
[313257041,1707040247490,-353.037268,0.00025272,2]
[313257042,1707040247500,-1410.29,0.00025272,2]
[313257043,1707040247511,-500.0,0.00025272,2]
[313257044,1707040247521,-626.12892872,0.00025272,2]
[313257045,1707040247531,-514.96,0.00025272,2]
[313257046,1707040247540,-1000.0,0.00025272,2]
[313257047,1707040247549,-500.0,0.00025272,2]
[313257048,1707040247654,-563.86,0.00025272,2]
[313257049,1707040247663,-500.0,0.00025272,2]
[313257050,1707040247672,-353.037268,0.00025378,2]
[313257051,1707040247681,-353.037268,0.00025378,2]
[313257052,1707040247690,-760.72363038,0.00025378,2]
[313257053,1707040247699,-156.02810108,0.00025378,2]
[313257054,1707040247709,-113744.77873259,0.00025378,2]
[313257055,1707040247718,-500.0,0.00025453,2]
[313257056,1707040247727,-500.0,0.00025463,2]
[313257057,1707040247736,-426.52191671,0.00025464,2]
[313257058,1707040247746,-1785.91754342,0.00025464,2]
[313257059,1707040247755,-1781.87998125,0.00025464,2]
[313257060,1707040247764,-155.19733575,0.00025464,2]
[313257061,1707040247774,-5218.09776125,0.00025464,2]
[313257062,1707040247783,-506.78463436,0.00025464,2]
[313257063,1707040247792,-500.0,0.00025464,2]
[313257064,1707040247801,-500.0,0.00025464,2]
[313257065,1707040247810,-500.0,0.00025464,2]
[313257066,1707040247820,-202.55252808,0.00025464,2]
[313257067,1707040247830,-500.0,0.00025464,2]
[313257068,1707040247839,-500.0,0.00025464,2]
[313257069,1707040247848,-500.0,0.00025464,2]
[313257070,1707040247857,-500.0,0.00025464,2]
[313257071,1707040247866,-500.0,0.00025464,2]
[313257072,1707040247875,-500.0,0.00025464,2]
[313257073,1707040247884,-500.0,0.00025464,2]
[313257074,1707040247893,-500.0,0.00025464,2]
[313257075,1707040247903,-500.0,0.00025464,2]
[313257076,1707040247913,-500.0,0.00025464,2]
[313257077,1707040247922,-500.0,0.00025464,2]
[313257078,1707040247931,-613.45,0.00025464,2]
[313257079,1707040247940,-500.0,0.00025464,2]
[313257080,1707040247949,-500.0,0.00025464,2]
[313257081,1707040247958,-166.58948701,0.00025464,2]
[313257082,1707040247967,-515.72640571,0.00025464,2]
[313257083,1707040247976,-500.0,0.00025464,2]
[313257084,1707040247985,-500.0,0.00025464,2]
[313257085,1707040247995,-353.037268,0.00025464,2]
[313257086,1707040248005,-353.037268,0.00025464,2]
[313257087,1707040248014,-353.037268,0.00025464,2]
[313257088,1707040248023,-353.037268,0.00025464,2]
[313257089,1707040248032,-406.93829842,0.00025464,2]
[313257090,1707040248042,-500.0,0.00025466,2]
[313257091,1707040248051,-424.6352201,0.00025467,2]
[313257092,1707040248061,-1000.0,0.00025467,2]
[313257093,1707040248070,-349.07646109,0.00025467,2]
[313257094,1707040248079,-155.81859198,0.00025476,2]
[313257095,1707040248088,-188.73696254,0.00025476,2]
[313257096,1707040248097,-182.01363394,0.00025476,2]
[313257097,1707040248106,-565.60551711,0.00025476,2]
[313257098,1707040248115,-254.21826336,0.00025476,2]
[313257099,1707040248124,-7171.79412978,0.00025476,2]
[313257100,1707040248133,-626.28582934,0.00025476,2]
[313257101,1707040248142,-326.04786116,0.00025476,2]
[313257102,1707040248151,-688.96127348,0.00025476,2]
[313257103,1707040248160,-651.40188958,0.00025476,2]
[313257104,1707040248169,-4194.71631543,0.00025476,2]
[313257105,1707040248178,-353.037268,0.00025476,2]
[313257106,1707040248187,-353.037268,0.00025476,2]
[313257107,1707040248197,-3975.13505251,0.00025477,2]
[313257108,1707040248206,-353.037268,0.00025477,2]
[313257109,1707040248215,-353.037268,0.00025477,2]
[313257110,1707040248224,-500.0,0.00025477,2]
[313257111,1707040248233,-500.0,0.00025477,2]
[313257112,1707040248243,-400.47300729,0.00025477,2]
[313257113,1707040248251,-500.0,0.00025477,2]
[313257114,1707040248261,-500.0,0.00025477,2]
[313257115,1707040248269,-500.0,0.00025477,2]
[313257116,1707040248278,-500.0,0.00025477,2]
[313257117,1707040248287,-385.69915588,0.00025477,2]
[313257118,1707040248296,-500.0,0.00025477,2]
[313257119,1707040248305,-500.0,0.00025477,2]
[313257120,1707040248315,-233.86532479,0.00025477,2]
[313257121,1707040248324,-81166.57212297,0.00025478,2]
[313257122,1707040248333,-353.037268,0.00025478,2]
[313257123,1707040248342,-353.037266,0.00025478,2]
[313257124,1707040248351,-2089.40946159,0.00025479,2]
[313257125,1707040248360,-430.62170667,0.00025479,2]
[313257126,1707040248369,-500.0,0.00025535,2]
[313257127,1707040248378,-4383.04,0.00025535,2]
[313257128,1707040248387,-500.0,0.00025535,2]
[313257129,1707040248396,-500.0,0.00025536,2]
[313257130,1707040248407,-1658.72,0.00025536,2]
[313257131,1707040248415,-500.0,0.00025536,2]
[313257132,1707040248424,-2161.66,0.00025536,2]
[313257133,1707040248433,-500.0,0.00025537,2]
[313257134,1707040248445,-500.0,0.00025537,2]
[313257135,1707040248454,-500.0,0.00025537,2]
[313257136,1707040248463,-500.0,0.00025537,2]
[313257137,1707040248472,-1747.21,0.00025537,2]
[313257138,1707040248482,-1844.85,0.00025537,2]
[313257139,1707040248491,-500.0,0.00025537,2]
[313257140,1707040248501,-500.0,0.00025537,2]
[313257141,1707040248510,-500.0,0.00025537,2]
[313257142,1707040248521,-500.0,0.00025545,2]
[313257143,1707040248530,-890.47,0.00025545,2]
[313257144,1707040248539,-500.0,0.00025545,2]
[313257145,1707040248548,-500.0,0.00025546,2]
[313257146,1707040248557,-500.0,0.00025546,2]
[313257147,1707040248567,-1410.29,0.00025546,2]
[313257148,1707040248576,-294.82483591,0.00025546,2]
[313257149,1707040248584,-514.96,0.00025546,2]
[313257150,1707040248594,-1000.0,0.00025546,2]
[313257151,1707040248603,-500.0,0.00025546,2]
[313257152,1707040248612,-563.86,0.00025546,2]
[313257153,1707040248622,-500.0,0.00025546,2]
[313257154,1707040248631,-500.0,0.0002564,2]
[313257155,1707040248640,-500.0,0.0002564,2]
[313257156,1707040248649,-500.0,0.0002564,2]
[313257157,1707040248660,-500.0,0.0002564,2]
[313257158,1707040248669,-500.0,0.0002564,2]
[313257159,1707040248678,-500.0,0.00025737,2]
[313257160,1707040248687,-500.0,0.00025738,2]
[313257161,1707040248696,-500.0,0.00025738,2]
[313257162,1707040248705,-427.51,0.00025738,2]
[313257163,1707040248713,-500.0,0.00025738,2]
[313257164,1707040248722,-500.0,0.00025738,2]
[313257165,1707040248731,-613.45,0.00025738,2]
[313257166,1707040248740,-500.0,0.00025738,2]
[313257167,1707040248749,-248.96042932,0.00025738,2]
[313257168,1707040248758,-500.0,0.00025738,2]
[313257169,1707040248767,-500.0,0.00025738,2]
[313257170,1707040248776,-1000.0,0.00025741,2]
[313257171,1707040248785,-4383.04,0.00025809,2]
[313257172,1707040248793,-500.0,0.0002581,2]
[313257173,1707040248803,-1658.72,0.0002581,2]
[313257174,1707040248812,-485.28509371,0.0002581,2]
[313257175,1707040248821,-1275.20663439,0.0002581,2]
[313257325,1707041432094,-440.18397126,0.00023063,2]
[313257354,1707041438282,-261.51628086,0.00023062,7]
[313257355,1707041438292,-2025.49177223,0.00023063,2]
[313257357,1707041438302,-21.54162212,0.00023064,2]
[313257359,1707041438313,-996.12896803,0.00023064,2]
[313257360,1707041438322,-352.1195832,0.00023065,2]
[313257362,1707041438331,-578.5410176,0.00023111,2]
[313257363,1707041438341,-325.58343054,0.00023111,2]
[313257364,1707041438351,-318.36560377,0.00024847,2]
[313257365,1707041438360,-164.09624383,0.000249,2]
[313257366,1707041438369,-155.68619698,0.00024987,2]
[313257367,1707041438378,-195.11188416,0.00024988,2]
[313257368,1707041438387,-215.62674625,0.00024988,2]
[313257826,1707042638368,-2250.31930056,0.00023055,2]
[313257966,1707042643385,-215.35644293,0.00023055,2]
[313257967,1707042643394,-1017.67059015,0.00023055,2]
[313257968,1707042643404,-1262.34623899,0.00023056,2]
[313257969,1707042643415,-352.1195832,0.00023057,2]
[313257970,1707042643424,-939.91844689,0.00023111,2]
[313257971,1707042643433,-1015.75263174,0.00023111,2]
[313257972,1707042643443,-304.72578952,0.00023111,2]
[313257973,1707042643455,-244.672293,0.00023208,2]
[313257974,1707042643464,-7757.9764971,0.00023224,2]
[313257975,1707042643473,-159.9329788,0.0002496,5]
[313257976,1707042643483,-313.00418309,0.00024988,2]
[313257977,1707042643492,-9845.01549845,0.00024988,2]
[313257978,1707042643501,-500.0,0.00024999,2]
[313257979,1707042643510,-500.0,0.00024999,2]
[313257980,1707042643519,-1819.08,0.00024999,2]
[313257981,1707042643528,-500.0,0.00024999,2]
[313257982,1707042643538,-500.0,0.00024999,2]
[313257983,1707042643547,-155.01085076,0.00025,2]
[313257984,1707042643556,-1088.13045983,0.00025,4]
[313257985,1707042643565,-534.83687431,0.00025,2]
[313257986,1707042643574,-7141.15166325,0.00025,2]
[313257987,1707042643583,-4735.25519825,0.00025,2]
[313257988,1707042643593,-1831.07341754,0.00025,2]
[313257989,1707042643603,-500.0,0.00025234,2]
[313257990,1707042643612,-500.0,0.00025234,2]
[313257991,1707042643622,-4398.57,0.00025234,2]
[313257992,1707042643631,-500.0,0.00025234,2]
[313257993,1707042643640,-500.0,0.00025234,2]
[313257994,1707042643649,-500.0,0.00025234,2]
[313257995,1707042643659,-500.0,0.00025234,2]
[313257996,1707042643668,-556.41767677,0.00025235,2]
[313257997,1707042643678,-500.0,0.00025235,2]
[313257998,1707042643687,-500.0,0.00025235,2]
[313257999,1707042643696,-500.0,0.00025235,2]
[313258000,1707042643706,-527.73,0.00025235,2]
[313258001,1707042643717,-500.0,0.00025235,2]
[313258002,1707042643726,-500.0,0.00025235,2]
[313258003,1707042643736,-779.16,0.00025235,2]
[313258004,1707042643747,-500.0,0.00025235,2]
[313258005,1707042643756,-500.0,0.00025235,2]
[313258006,1707042643766,-500.0,0.00025235,2]
[313258007,1707042643776,-500.0,0.00025235,2]
[313258008,1707042643788,-500.26192483,0.00025246,2]
[313258009,1707042643797,-500.0,0.00025246,2]
[313258010,1707042643806,-500.0,0.00025246,2]
[313258011,1707042643815,-526.56603704,0.00025246,2]
[313258012,1707042643823,-500.0,0.00025246,2]
[313258013,1707042643831,-263.52521614,0.00025246,2]
[313258043,1707042897683,-352.1195832,0.00023043,2]
[313258044,1707042897704,-323.81557453,0.00023044,2]
[313258045,1707042897724,-2465.67574349,0.00023045,2]
[313258046,1707042897748,-1057.38909878,0.00023111,2]
[313258117,1707043832498,-467.09929999,0.000226,2]
[313258118,1707043832511,-940.05,0.000226,2]
[313258119,1707043832523,-396.57004174,0.000226,2]
[313258120,1707043832532,-1200.96451979,0.00022601,2]
[313258121,1707043832541,-245.5896049,0.00022602,2]
[313258122,1707043832550,-176.70351508,0.00022611,2]
[313258123,1707043832562,-527.04847343,0.00022611,2]
[313258124,1707043832574,-1761.92375498,0.00022611,2]
[313258125,1707043832583,-352.1195832,0.00022612,2]
[313258126,1707043832592,-166.6666675,0.00022625,2]
[313258127,1707043832601,-715.4821902,0.00022794,2]
[313258128,1707043832610,-5214.36762711,0.00023111,2]
[313258129,1707043832619,-313.00418309,0.00023111,2]
[313258130,1707043832629,-338.58421058,0.00023111,2]
[313258131,1707043832639,-218.165475,0.00023389,2]
[313258132,1707043832648,-200.0,0.00024883,7]
[313258133,1707043832657,-6090.5,0.00024988,3]
[313258134,1707043832666,-5075.41,0.00024988,3]
[313258135,1707043832676,-8770.32,0.00024989,3]
[313258136,1707043832685,-7308.6,0.00024989,3]
[313258137,1707043832694,-246.27720673,0.00024997,2]
[313258138,1707043832704,-500.0,0.00024997,2]
[313258139,1707043832714,-500.0,0.00024997,2]
[313258140,1707043832723,-511.24418006,0.00024997,2]
[313258141,1707043832733,-500.0,0.00024997,2]
[313258142,1707043832742,-500.0,0.00024997,2]
[313258143,1707043832751,-1985.1,0.00024997,2]
[313258144,1707043832760,-500.0,0.00024997,2]
[313258145,1707043832769,-500.0,0.00024997,2]
[313258146,1707043832778,-500.0,0.00024997,2]
[313258147,1707043832787,-500.0,0.00024997,2]
[313258148,1707043832797,-500.0,0.00024997,2]
[313258149,1707043832806,-776.52,0.00024997,2]
[313258150,1707043832816,-500.0,0.00024997,2]
[313258151,1707043832825,-500.0,0.00024997,2]
[313258152,1707043832834,-500.0,0.00024997,2]
[313258153,1707043832843,-241.38996971,0.00024997,2]
[313258154,1707043832853,-500.0,0.00024997,2]
[313258155,1707043832862,-500.0,0.00024997,2]
[313258156,1707043832871,-500.0,0.00024997,2]
[313258157,1707043832880,-500.0,0.00024997,2]
[313258158,1707043832890,-500.0,0.00024997,2]
[313258159,1707043832899,-500.0,0.00024997,2]
[313258160,1707043832908,-500.0,0.00024997,2]
[313258161,1707043832917,-1633.16,0.00024997,2]
[313258162,1707043832926,-500.0,0.00024997,2]
[313258163,1707043832936,-1722.14,0.00024997,2]
[313258164,1707043832945,-225.37918107,0.00024997,2]
[313258196,1707043838645,-274.62081893,0.00024997,2]
[313258198,1707043838655,-500.0,0.00024997,2]
[313258200,1707043838666,-500.02786097,0.00024997,2]
[313258202,1707043838675,-500.0,0.00024997,2]
[313258204,1707043838686,-500.0,0.00024997,2]
[313258206,1707043838695,-254.15920768,0.00024997,2]
[313258208,1707043838705,-395.46115902,0.00024997,2]
[313258294,1707043841798,-104.53884098,0.00024997,2]
[313258295,1707043841806,-4215.3,0.00024997,2]
[313258296,1707043841815,-500.0,0.00024997,2]
[313258297,1707043841825,-500.0,0.00024997,2]
[313258298,1707043841834,-378.5192034,0.00024997,2]
[313258299,1707043841843,-500.0,0.00024997,2]
[313258300,1707043841852,-500.0,0.00024997,2]
[313258301,1707043841862,-500.0,0.00024997,2]
[313258302,1707043841871,-500.0,0.00024997,2]
[313258303,1707043841879,-1562.96,0.00024997,2]
[313258304,1707043841890,-1340.63,0.00024997,2]
[313258305,1707043841898,-501.25,0.00024997,2]
[313258306,1707043841908,-500.0,0.00024997,2]
[313258307,1707043841917,-578.11,0.00024998,2]
[313258308,1707043841926,-500.0,0.00024998,2]
[313258309,1707043841935,-86.80981639,0.00024998,2]
[313258310,1707043841947,-413.19018361,0.00024998,2]
[313258311,1707043841956,-500.0,0.00024998,2]
[313258312,1707043841965,-229.84217506,0.00024998,2]
[313258347,1707043844531,-270.15782494,0.00024998,2]
[313258348,1707043844540,-236.47478386,0.00024998,2]
[313258350,1707043844549,-331.72263123,0.00024998,2]
[313258352,1707043844558,-403.53925331,0.00024998,2]
[313258353,1707043844567,-500.0,0.00024998,2]
[313258354,1707043844576,-500.0,0.00024998,2]
[313258355,1707043844585,-500.0,0.00024998,2]
[313258356,1707043844595,-500.00000068,0.00024998,2]
[313258357,1707043844604,-500.0,0.00024998,2]
[313258358,1707043844613,-500.0,0.00024998,2]
[313258359,1707043844622,-184.20431333,0.00024998,2]
[313258368,1707043846625,-279.41255906,0.00024996,2]
[313258369,1707043846636,-929.55750363,0.00024996,2]
[313258370,1707043846646,-315.79568667,0.00024998,2]
[313258371,1707043846656,-338.36742195,0.00024998,2]
[313258372,1707043846666,-500.0,0.00024998,2]
[313258373,1707043846675,-84.12682869,0.00024998,2]
[313258374,1707043846687,-415.87317131,0.00024998,2]
[313258375,1707043846698,-500.0,0.00024998,2]
[313258376,1707043846708,-500.0,0.00024998,2]
[313258377,1707043846718,-1000.0,0.00024998,2]
[313258378,1707043846727,-833.0,0.00024998,2]
[313258379,1707043846737,-500.0,0.00024998,2]
[313258380,1707043846746,-541.36,0.00024998,2]
[313258381,1707043846756,-500.0,0.00024998,2]